fUST/lending_fUST_20250422
["ID","MTS","AMOUNT","RATE_DAILY","PERIOD"]
[358588363,1745291446730,-253.250277,0.00025,7]
[358588365,1745291446740,-253.250277,0.00025,7]
[358588367,1745291446749,-239.438046,0.00025,7]
[358588369,1745291446759,-228.402622,0.00025,7]
[358588371,1745291446768,-239.438046,0.00025,7]
[358588373,1745291446777,-228.402622,0.00025,7]
[358588375,1745291446787,-199.570278,0.00025,7]
[358588377,1745291446800,-199.570278,0.00025,7]
[358588380,1745291446809,-151.0,0.00025,7]
[358588384,1745291446824,-151.0,0.00025,7]
[358588388,1745291446841,-205.126476,0.00025,7]
[358588390,1745291446851,-205.126476,0.00025,7]
[358588394,1745291446861,-151.0,0.00025,5]
[358588397,1745291446873,-752.101179,0.00025,7]
[358588399,1745291446883,-752.101179,0.00025,7]
[358588401,1745291446894,-452.194525,0.00025,7]
[358588403,1745291446904,-452.194525,0.00025,7]
[358588405,1745291446914,-151.0,0.00025,7]
[358588407,1745291446924,-151.0,0.00025,7]
[358588409,1745291446935,-500.0,0.00025,5]
[358588411,1745291446945,-330.654109,0.00025,7]
[358588413,1745291446955,-330.654109,0.00025,7]
[358588416,1745291446966,-1336.772074,0.00025,2]
[358588418,1745291446976,-1336.772074,0.00025,2]
[358588420,1745291446986,-151.0,0.00025,7]
[358588422,1745291446996,-151.0,0.00025,7]
[358588424,1745291447006,-177.352007,0.00025,7]
[358588426,1745291447015,-509.99301,0.00025,7]
[358588428,1745291447025,-177.352007,0.00025,7]
[358588430,1745291447034,-509.99301,0.00025,7]
[358588432,1745291447043,-644.813278,0.00025,7]
[358588434,1745291447053,-151.0,0.00025,8]
[358588436,1745291447063,-644.813278,0.00025,7]
[358588438,1745291447073,-151.0,0.00025,7]
[358588440,1745291447082,-1321.26524,0.00025,7]
[358588442,1745291447092,-1321.26524,0.00025,7]
[358588444,1745291447102,-398.990745,0.00025,7]
[358588446,1745291447112,-183.902563,0.00025,7]
[358588448,1745291447122,-398.990745,0.00025,7]
[358588450,1745291447132,-183.902563,0.00025,7]
[358588452,1745291447141,-369.544562,0.00025,7]
[358588455,1745291447151,-369.544562,0.00025,7]
[358588457,1745291447162,-500.0,0.00025,5]
[358588459,1745291447172,-151.0,0.00025,7]
[358588461,1745291447181,-1469.137148,0.00025,7]
[358588463,1745291447191,-1469.137148,0.00025,7]
[358588465,1745291447201,-729.16666667,0.00025,7]
[358588467,1745291447211,-151.0,0.00025,7]
[358588469,1745291447220,-499.147211,0.00025,7]
[358588471,1745291447230,-551.62069325,0.00025,5]
[358588473,1745291447239,-499.147211,0.00025,7]
[358588475,1745291447249,-160.0,0.00025,7]
[358588477,1745291447258,-391.633315,0.00025,7]
[358588479,1745291447268,-391.633315,0.00025,7]
[358588481,1745291447278,-479.166942,0.00025,7]
[358588483,1745291447287,-479.166942,0.00025,7]
[358588485,1745291447296,-151.0,0.00025,7]
[358588487,1745291447306,-160.646172,0.00025,7]
[358588489,1745291447315,-318.622628,0.00025,7]
[358588491,1745291447324,-318.622628,0.00025,7]
[358588493,1745291447333,-160.0,0.00025,7]
[358588495,1745291447342,-160.0,0.00025,7]
[358588497,1745291447352,-151.0,0.00025146,2]
[358588499,1745291447361,-952.0,0.000252,2]
[358588501,1745291447371,-151.0,0.00025321,2]
[358588503,1745291447380,-500.0,0.00025321,2]
[358588505,1745291447390,-500.0,0.00025321,2]
[358588507,1745291447399,-505.7246005,0.00025321,2]
[358588509,1745291447409,-12568.0511546,0.00025342,2]
[358588511,1745291447419,-160.0,0.00025342,2]
[358588513,1745291447428,-151.0,0.00025344,7]
[358588515,1745291447439,-151.0,0.00025345,7]
[358588517,1745291447448,-499.147211,0.00025345,7]
[358588519,1745291447458,-499.147211,0.00025345,7]
[358588521,1745291447468,-391.633315,0.00025345,7]
[358588523,1745291447478,-391.633315,0.00025345,7]
[358588525,1745291447487,-318.622628,0.00025345,7]
[358588527,1745291447497,-318.622628,0.00025345,7]
[358588529,1745291447507,-160.0,0.00025367,3]
[358588531,1745291447517,-165.93638792,0.00025367,5]
[358588533,1745291447527,-635.63167379,0.00025379,2]
[358588535,1745291447537,-200.0,0.000254,2]
[358588537,1745291447547,-200.0,0.000254,2]
[358588540,1745291447557,-165.013384,0.00025404,7]
[358588542,1745291447567,-165.013384,0.00025404,7]
[358588544,1745291447576,-151.0,0.00025421,2]
[358588546,1745291447586,-500.0,0.00025421,2]
[358588548,1745291447595,-500.0,0.00025421,2]
[358588550,1745291447604,-151.0,0.00025421,2]
[358588552,1745291447614,-151.0,0.00025421,7]
[358588554,1745291447623,-479.166942,0.00025421,7]
[358588556,1745291447632,-479.166942,0.00025421,7]
[358588558,1745291447642,-1000.6721495,0.000255,2]
[358588560,1745291447651,-500.0,0.0002551,2]
[358588562,1745291447661,-500.0,0.0002551,2]
[358588564,1745291447670,-500.0,0.0002551,2]
[358588566,1745291447680,-500.0,0.0002551,2]
[358588568,1745291447690,-151.0,0.0002551,2]
[358588570,1745291447699,-151.0,0.0002551,2]
[358588572,1745291447709,-151.0,0.0002551,2]
[358588574,1745291447718,-151.0,0.0002551,2]
[358588576,1745291447728,-151.0,0.0002551,7]
[358588578,1745291447737,-151.0,0.0002551,2]
[358588580,1745291447747,-151.0,0.0002551,2]
[358588582,1745291447756,-151.0,0.0002551,7]
[358588584,1745291447765,-185.604133,0.0002551,7]
[358588586,1745291447774,-185.604133,0.0002551,7]
[358588588,1745291447784,-151.0,0.0002551,7]
[358588589,1745291447796,-151.0,0.0002551,7]
[358588591,1745291447805,-151.0,0.0002551,7]
[358588592,1745291447815,-179.755873,0.0002551,7]
[358588593,1745291447824,-156.541076,0.0002551,7]
[358588594,1745291447836,-160.88821,0.0002551,7]
[358588595,1745291447846,-153.115941,0.0002551,7]
[358588596,1745291447855,-239.438046,0.0002551,7]
[358588597,1745291447970,-239.438046,0.0002551,7]
[358588598,1745291447980,-752.101179,0.0002551,7]
[358588599,1745291447989,-752.101179,0.0002551,7]
[358588600,1745291448000,-151.0,0.0002551,7]
[358588601,1745291448012,-151.0,0.0002551,7]
[358588602,1745291448021,-330.654109,0.0002551,7]
[358588603,1745291448031,-330.654109,0.0002551,7]
[358588604,1745291448040,-1336.772074,0.0002551,2]
[358588605,1745291448049,-1336.772074,0.0002551,2]
[358588606,1745291448059,-151.0,0.0002551,7]
[358588607,1745291448068,-151.0,0.0002551,7]
[358588608,1745291448077,-177.352007,0.0002551,7]
[358588609,1745291448086,-509.99301,0.0002551,7]
[358588610,1745291448096,-177.352007,0.0002551,7]
[358588611,1745291448105,-509.99301,0.0002551,7]
[358588612,1745291448114,-644.813278,0.0002551,7]
[358588613,1745291448123,-644.813278,0.0002551,7]
[358588614,1745291448133,-151.0,0.0002551,7]
[358588615,1745291448142,-1321.26524,0.0002551,7]
[358588616,1745291448152,-1321.26524,0.0002551,7]
[358588617,1745291448162,-398.990745,0.0002551,7]
[358588618,1745291448171,-183.902563,0.0002551,7]
[358588619,1745291448181,-398.990745,0.0002551,7]
[358588620,1745291448192,-183.902563,0.0002551,7]
[358588621,1745291448201,-369.544562,0.0002551,7]
[358588622,1745291448211,-369.544562,0.0002551,7]
[358588623,1745291448221,-1469.137148,0.0002551,7]
[358588624,1745291448230,-1469.137148,0.0002551,7]
[358588625,1745291448240,-269.88327999,0.00025521,2]
[358588626,1745291448250,-452.194525,0.00025521,7]
[358588627,1745291448260,-452.194525,0.00025521,7]
[358588628,1745291448270,-1680.0,0.00025529,2]
[358588629,1745291448279,-160.0,0.00025557,2]
[358588630,1745291448289,-201.85013248,0.00025694,2]
[358588631,1745291448298,-200.0,0.000257,2]
[358588632,1745291448308,-151.0,0.000257,14]
[358588633,1745291448318,-228.402622,0.00025702,7]
[358588634,1745291448328,-228.402622,0.00025702,7]
[358588635,1745291448338,-199.570278,0.00025702,7]
[358588636,1745291448348,-199.570278,0.00025702,7]
[358588637,1745291448358,-151.0,0.00025702,7]
[358588638,1745291448368,-151.0,0.00025702,7]
[358588639,1745291448378,-205.126476,0.00025702,7]
[358588640,1745291448387,-205.126476,0.00025702,7]
[358588641,1745291448397,-800.0,0.00025718,2]
[358588642,1745291448406,-150.775,0.00025734,2]
[358588643,1745291448416,-150.114,0.00025734,2]
[358588644,1745291448427,-150.131,0.00025734,2]
[358588645,1745291448438,-250.0,0.00025734,2]
[358588646,1745291448448,-154.106,0.00025734,2]
[358588647,1745291448457,-708.0,0.00025734,2]
[358588648,1745291448468,-546.511,0.00025734,2]
[358588649,1745291448478,-2248.62,0.00025734,2]
[358588650,1745291448488,-151.0,0.00025734,7]
[358588651,1745291448498,-499.147211,0.00025734,7]
[358588652,1745291448508,-499.147211,0.00025734,7]
[358588653,1745291448518,-391.633315,0.00025734,7]
[358588654,1745291448527,-391.633315,0.00025734,7]
[358588655,1745291448536,-151.0,0.00025734,7]
[358588656,1745291448545,-318.622628,0.00025734,7]
[358588657,1745291448554,-318.622628,0.00025734,7]
[358588658,1745291448564,-800.0,0.0002575,2]
[358588659,1745291448573,-263.46818694,0.00025754,2]
[358588660,1745291448582,-800.0,0.00025756,2]
[358588661,1745291448592,-800.0,0.00025769,2]
[358588662,1745291448601,-151.0,0.00025781,7]
[358588663,1745291448610,-151.0,0.00025781,7]
[358588664,1745291448620,-151.0,0.00025781,7]
[358588665,1745291448629,-800.0,0.00025788,2]
[358588666,1745291448638,-800.0,0.00025789,2]
[358588667,1745291448647,-800.0,0.00025795,2]
[358588668,1745291448656,-800.0,0.00025799,2]
[358588669,1745291448667,-151.0,0.000258,7]
[358588670,1745291448676,-151.0,0.000258,18]
[358588671,1745291448686,-151.0,0.00025809,7]
[358588672,1745291448695,-151.0,0.00025809,7]
[358588673,1745291448704,-479.166942,0.00025809,7]
[358588674,1745291448714,-479.166942,0.00025809,7]
[358588675,1745291448723,-160.0,0.00025809,7]
[358588676,1745291448732,-800.0,0.00025813,2]
[358588677,1745291448742,-800.0,0.00025816,2]
[358588678,1745291448752,-800.0,0.00025817,2]
[358588679,1745291448762,-800.0,0.00025824,2]
[358588680,1745291448771,-800.0,0.00025826,2]
[358588681,1745291448783,-800.0,0.00025841,2]
[358588682,1745291448796,-177.352007,0.00025844,7]
[358588683,1745291448805,-177.352007,0.00025844,7]
[358588684,1745291448815,-800.0,0.0002585,2]
[358588685,1745291448825,-800.0,0.00025851,2]
[358588686,1745291448834,-151.0,0.00025853,7]
[358588687,1745291448845,-151.0,0.00025853,7]
[358588688,1745291448855,-644.813278,0.00025853,7]
[358588689,1745291448865,-644.813278,0.00025853,7]
[358588690,1745291448877,-1321.26524,0.00025853,7]
[358588691,1745291448887,-1321.26524,0.00025853,7]
[358588692,1745291448898,-398.990745,0.00025853,7]
[358588693,1745291448907,-398.990745,0.00025853,7]
[358588694,1745291448916,-369.544562,0.00025853,7]
[358588695,1745291448926,-369.544562,0.00025853,7]
[358588696,1745291448936,-151.0,0.00025869,2]
[358588697,1745291448945,-500.0,0.00025869,2]
[358588698,1745291448955,-500.0,0.00025869,2]
[358588699,1745291448964,-800.0,0.00025873,2]
[358588700,1745291448974,-800.0,0.00025876,2]
[358588701,1745291448984,-800.0,0.00025887,2]
[358588702,1745291448994,-151.0,0.000259,17]
[358588703,1745291449003,-800.0,0.000259,2]
[358588704,1745291449014,-1140.44417206,0.000259,2]
[358588705,1745291449024,-806.2126158,0.00025901,2]
[358588706,1745291449033,-151.0,0.00025908,7]
[358588707,1745291449042,-151.0,0.00025908,7]
[358588708,1745291449051,-452.194525,0.00025908,7]
[358588709,1745291449061,-452.194525,0.00025908,7]
[358588710,1745291449070,-800.0,0.00025913,2]
[358588711,1745291449080,-481.94030174,0.00025927,2]
[358588712,1745291449090,-800.0,0.00025933,2]
[358588713,1745291449100,-800.0,0.00025934,2]
[358588714,1745291449110,-151.0,0.00025942,7]
[358588715,1745291449119,-197.040389,0.00025942,7]
[358588716,1745291449130,-197.040389,0.00025942,7]
[358588717,1745291449140,-800.0,0.00025944,2]
[358588718,1745291449149,-800.0,0.00025952,2]
[358588719,1745291449160,-215.0738,0.00025954,2]
[358588720,1745291449169,-151.0,0.00025954,2]
[358588721,1745291449179,-752.101179,0.00025962,7]
[358588722,1745291449189,-752.101179,0.00025962,7]
[358588723,1745291449199,-151.0,0.00025962,7]
[358588724,1745291449209,-151.0,0.00025962,7]
[358588725,1745291449219,-1336.772074,0.00025962,2]
[358588726,1745291449229,-1336.772074,0.00025962,2]
[358588727,1745291449238,-151.0,0.00025962,7]
[358588728,1745291449248,-215.770963,0.00025962,7]
[358588729,1745291449258,-183.902563,0.00025962,7]
[358588730,1745291449267,-183.902563,0.00025962,7]
[358588731,1745291449276,-151.0,0.00025963,7]
[358588732,1745291449286,-151.0,0.00025969,2]
[358588733,1745291449295,-614.64518539,0.00025969,2]
[358588734,1745291449306,-500.0,0.00025969,2]
[358588735,1745291449316,-151.0,0.00025969,2]
[358588736,1745291449326,-489.65100318,0.00025973,2]
[358588737,1745291449336,-303.31260964,0.00025973,2]
[358588738,1745291449346,-151.0,0.00025973,7]
[358588739,1745291449427,-151.0,0.00025973,7]
[358588740,1745291449437,-228.853004,0.00025973,7]
[358588741,1745291449448,-228.853004,0.00025973,7]
[358588742,1745291449458,-234.723814,0.00025973,7]
[358588743,1745291449468,-234.723814,0.00025973,7]
[358588744,1745291449479,-253.250277,0.00025973,7]
[358588745,1745291449490,-253.250277,0.00025973,7]
[358588746,1745291449499,-151.0,0.00025973,7]
[358588747,1745291449508,-499.147211,0.00025973,7]
[358588748,1745291449518,-499.147211,0.00025973,7]
[358588749,1745291449527,-391.633315,0.00025973,7]
[358588750,1745291449537,-391.633315,0.00025973,7]
[358588751,1745291449546,-318.622628,0.00025973,7]
[358588752,1745291449556,-318.622628,0.00025973,7]
[358588753,1745291449565,-160.0,0.0002598,7]
[358588754,1745291449575,-4910.26049696,0.00026,2]
[358588755,1745291449752,-1825.91836959,0.00026,2]
[358588756,1745291449762,-1507.31714339,0.00026,2]
[358588757,1745291449774,-6249.68285661,0.00026,2]
[358588758,1745291449784,-1699.0,0.00026,2]
[358588759,1745291449797,-151.0,0.00026,7]
[358588760,1745291449807,-151.0,0.00026,7]
[358588761,1745291449816,-151.0,0.00026,7]
[358588762,1745291449826,-151.0,0.00026,7]
[358588763,1745291449835,-151.0,0.00026,7]
[358588764,1745291449846,-151.0,0.00026,7]
[358588765,1745291449855,-151.0,0.00026,7]
[358588766,1745291449864,-152.915463,0.00026,7]
[358588767,1745291449876,-158.125743,0.00026,7]
[358588768,1745291449886,-239.438046,0.00026,7]
[358588769,1745291449896,-228.402622,0.00026,7]
[358588770,1745291449905,-239.438046,0.00026,7]
[358588771,1745291449915,-228.402622,0.00026,7]
[358588772,1745291449925,-199.570278,0.00026,7]
[358588773,1745291449934,-199.570278,0.00026,7]
[358588774,1745291449944,-151.0,0.00026,7]
[358588775,1745291449953,-151.0,0.00026,7]
[358588776,1745291449963,-205.126476,0.00026,7]
[358588777,1745291449972,-205.126476,0.00026,7]
[358588778,1745291449982,-330.654109,0.00026,7]
[358588779,1745291449991,-330.654109,0.00026,7]
[358588780,1745291450001,-151.0,0.00026,7]
[358588781,1745291450010,-479.166942,0.00026,7]
[358588782,1745291450020,-479.166942,0.00026,7]
[358588783,1745291450029,-151.0,0.00026027,7]
[358588784,1745291450039,-602.04515699,0.00026027,2]
[358588785,1745291450048,-500.0,0.00026058,2]
[358588786,1745291450057,-362.5138339,0.00026058,2]
[358588787,1745291450069,-137.4861661,0.00026058,2]
[358588788,1745291450078,-500.0,0.00026058,2]
[358588789,1745291450088,-403.28898098,0.00026058,2]
[358588790,1745291450097,-151.0,0.00026058,2]
[358588791,1745291450107,-151.0,0.00026058,2]
[358588792,1745291450117,-177.352007,0.00026058,7]
[358588793,1745291450127,-177.352007,0.00026058,7]
[358588794,1745291450139,-600.0,0.00026216,2]
[358588795,1745291450151,-509.99301,0.0002625,7]
[358588796,1745291450161,-509.99301,0.0002625,7]
[358588797,1745291450171,-1202.48323021,0.0002625,7]
[358588798,1745291450183,-266.65391779,0.0002625,7]
[358588799,1745291450193,-86.41812461,0.0002625,7]
[358588853,1745292632060,-272.55198691,0.00023142,2]
[358588854,1745292632070,-1039.00461537,0.00023142,2]
[358588855,1745292632080,-853.12937448,0.00023242,2]
[358588856,1745292632090,-259.015654,0.00023447,2]
[358588857,1745292632100,-250.0,0.00023475,2]
[358588858,1745292632109,-1200.0,0.00024371,2]
[358588860,1745292632119,-300.0,0.00024472,2]
[358588862,1745292632128,-500.0,0.00024473,2]
[358588864,1745292632138,-500.0,0.00024473,2]
[358588866,1745292632147,-277.77060976,0.00024473,2]
[358588868,1745292632156,-9126.55079678,0.00024473,2]
[358588870,1745292632170,-20185.9550091,0.00024473,2]
[358588872,1745292632182,-207.4,0.00024484,2]
[358588874,1745292632191,-151.0,0.00024484,2]
[358588876,1745292632200,-210477.2541743,0.00024498,2]
[358588894,1745292637849,-159522.7458257,0.00024498,2]
[358588895,1745292637859,-178.488427,0.000246,7]
[358588896,1745292637868,-178.488427,0.000246,7]
[358588897,1745292637877,-151.0,0.000246,7]
[358588898,1745292637887,-151.0,0.000246,7]
[358588899,1745292637895,-151.0,0.000246,7]
[358588900,1745292637904,-151.0,0.000246,7]
[358588901,1745292637914,-151.0,0.000246,7]
[358588902,1745292637924,-343.9331429,0.000246,2]
[358588903,1745292637934,-566.3756473,0.000246,2]
[358588904,1745292637943,-318.4057125,0.000246,2]
[358588905,1745292637953,-566.3756473,0.000246,2]
[358588906,1745292637962,-566.3756473,0.000246,2]
[358588907,1745292637972,-160.0,0.00024767,2]
[358588908,1745292637981,-160.0,0.00024767,2]
[358588909,1745292637991,-160.0,0.00024767,2]
[358588910,1745292638002,-500.0,0.00024773,2]
[358588911,1745292638011,-500.0,0.00024773,2]
[358588912,1745292638021,-178.488427,0.000248,7]
[358588913,1745292638030,-178.488427,0.000248,7]
[358588914,1745292638040,-151.0,0.000248,7]
[358588915,1745292638049,-151.0,0.000248,7]
[358588916,1745292638059,-151.0,0.000248,7]
[358588917,1745292638154,-151.0,0.000248,7]
[358588918,1745292638170,-197.513673,0.000248,7]
[358588919,1745292638180,-151.0,0.000248,7]
[358588920,1745292638189,-151.0,0.000248,7]
[358588921,1745292638199,-1524.06619891,0.00024851,2]
[358588922,1745292638209,-151.0,0.00024851,2]
[358588923,1745292638219,-151.0,0.00024851,2]
[358588924,1745292638228,-500.0,0.00024851,2]
[358588925,1745292638238,-151.0,0.00024851,2]
[358588926,1745292638249,-500.0,0.00024851,2]
[358588927,1745292638259,-151.41943694,0.00024851,2]
[358588928,1745292638268,-151.0,0.00024851,2]
[358588929,1745292638277,-195.47427223,0.00024851,2]
[358588930,1745292638286,-151.0,0.00024851,2]
[358588931,1745292638295,-151.0,0.00024851,2]
[358588932,1745292638305,-151.0,0.00024851,2]
[358588933,1745292638314,-151.0,0.00024851,2]
[358588934,1745292638324,-151.22814432,0.00024851,2]
[358588935,1745292638333,-156.4711157,0.00024851,2]
[358588936,1745292638343,-151.0,0.00024851,2]
[358588937,1745292638352,-151.0,0.00024851,2]
[358588938,1745292638361,-151.8310993,0.00024851,2]
[358588939,1745292638370,-151.0,0.00024851,2]
[358588940,1745292638379,-151.0,0.00024851,2]
[358588941,1745292638388,-293.85068442,0.00024851,2]
[358588942,1745292638397,-167.14374194,0.00024851,2]
[358588943,1745292638407,-301.91134715,0.00024851,2]
[358588944,1745292638416,-151.25327414,0.00024851,2]
[358588945,1745292638425,-191.39400751,0.00024851,2]
[358588946,1745292638435,-151.0,0.00024851,2]
[358588947,1745292638445,-151.0,0.00024851,2]
[358588948,1745292638454,-500.0,0.00024851,2]
[358588949,1745292638463,-151.0,0.00024851,2]
[358588950,1745292638473,-166.79409285,0.00024851,2]
[358588951,1745292638482,-192.19065671,0.00024851,2]
[358588952,1745292638491,-160.51690341,0.00024851,2]
[358588953,1745292638500,-291.81468086,0.00024851,2]
[358588954,1745292638509,-151.0,0.00024851,2]
[358588955,1745292638518,-509.62931601,0.00024873,2]
[358588956,1745292638527,-500.0,0.00024873,2]
[358588957,1745292638536,-500.0,0.00024873,2]
[358588958,1745292638545,-500.0,0.00024873,2]
[358588959,1745292638555,-171.49124892,0.00024873,2]
[358588960,1745292638564,-500.0,0.00024873,2]
[358588961,1745292638573,-500.0,0.00024873,2]
[358588962,1745292638582,-500.0,0.00024873,2]
[358588963,1745292638591,-501.50458303,0.00024873,2]
[358588964,1745292638601,-500.0,0.00024873,2]
[358588965,1745292638610,-500.0,0.00024873,2]
[358588966,1745292638620,-500.30093475,0.00024873,2]
[358588967,1745292638629,-500.0,0.00024873,2]
[358588968,1745292638638,-300.0,0.00024873,2]
[358588969,1745292638647,-462.98824588,0.00024873,2]
[358588970,1745292638657,-402.43625896,0.00024873,2]
[358588971,1745292638666,-500.0,0.00024873,2]
[358588972,1745292638676,-500.0,0.00024873,2]
[358588973,1745292638685,-500.0,0.00024873,2]
[358588974,1745292638694,-500.0,0.00024873,2]
[358588975,1745292638703,-500.0,0.00024873,2]
[358588976,1745292638712,-500.0,0.00024873,2]
[358588977,1745292638721,-502.166531,0.00024873,2]
[358588978,1745292638731,-500.0,0.00024873,2]
[358588979,1745292638740,-500.0,0.00024873,2]
[358588980,1745292638750,-500.0,0.00024873,2]
[358588981,1745292638759,-504.50660322,0.00024873,2]
[358588982,1745292638769,-500.0,0.00024873,2]
[358588983,1745292638779,-500.0,0.00024873,2]
[358588984,1745292638788,-506.22864744,0.00024873,2]
[358588985,1745292638797,-500.0,0.00024873,2]
[358588986,1745292638807,-255.78784769,0.00024873,2]
[358588987,1745292638816,-500.0,0.00024873,2]
[358588988,1745292638825,-502.55080343,0.00024873,2]
[358588989,1745292638834,-500.0,0.00024873,2]
[358588990,1745292638844,-178.488427,0.00024873,7]
[358588991,1745292638853,-178.488427,0.00024873,7]
[358588992,1745292638862,-151.0,0.00024873,7]
[358588993,1745292638872,-151.0,0.00024873,7]
[358588994,1745292638881,-151.0,0.00024873,7]
[358588995,1745292638890,-151.0,0.00024873,7]
[358588996,1745292638899,-1524.06619891,0.00024873,2]
[358588997,1745292638909,-1524.06619891,0.00024876,2]
[358588998,1745292638918,-151.0,0.0002489,7]
[358588999,1745292638927,-1524.06619891,0.00024898,2]
[358589000,1745292638937,-178.488427,0.000249,7]
[358589001,1745292638946,-178.488427,0.000249,7]
[358589002,1745292638955,-254.219988,0.000249,7]
[358589003,1745292638965,-151.0,0.000249,7]
[358589004,1745292638974,-228.50117,0.000249,7]
[358589005,1745292638983,-151.0,0.000249,7]
[358589006,1745292638992,-151.0,0.000249,7]
[358589007,1745292639001,-242956.240588,0.000249,2]
[358589008,1745292639011,-474.6454923,0.00024905,2]
[358589009,1745292639020,-178.488427,0.00025,7]
[358589010,1745292639030,-178.488427,0.00025,7]
[358589011,1745292639039,-151.0,0.00025,7]
[358589012,1745292639049,-151.0,0.00025,7]
[358589013,1745292639058,-151.0,0.00025,7]
[358589014,1745292639068,-936.29467369,0.00025,2]
[358589015,1745292639077,-500.0,0.00025173,2]
[358589016,1745292639086,-2889.0,0.00025187,7]
[358589017,1745292639096,-2889.0,0.00025187,7]
[358589018,1745292639105,-2889.0,0.00025187,7]
[358589019,1745292639115,-420.73667954,0.00025187,7]
[358589020,1745292639125,-160.0,0.00025187,7]
[358589021,1745292639134,-729.16666667,0.00025187,7]
[358589022,1745292639143,-200.0,0.00025187,7]
[358589023,1745292639153,-160.0,0.00025187,7]
[358589024,1745292639163,-178.488427,0.00025342,7]
[358589025,1745292639176,-178.488427,0.00025342,7]
[358589026,1745292639185,-151.0,0.00025342,7]
[358589027,1745292639195,-151.0,0.00025342,7]
[358589028,1745292639204,-151.0,0.00025342,7]
[358589029,1745292639214,-204.5823261,0.00025399,2]
[358589030,1745292639224,-151.0,0.00025399,2]
[358589031,1745292639234,-500.0,0.00025399,2]
[358589032,1745292639243,-151.0,0.00025399,2]
[358589033,1745292639253,-505.36418559,0.00025399,2]
[358589034,1745292639264,-151.0,0.00025399,2]
[358589035,1745292639273,-151.0,0.00025399,2]
[358589036,1745292639283,-151.0,0.00025399,2]
[358589037,1745292639292,-151.0,0.00025399,2]
[358589038,1745292639302,-151.0,0.00025399,2]
[358589039,1745292639311,-151.0,0.00025399,2]
[358589040,1745292639321,-151.0,0.00025399,2]
[358589041,1745292639330,-151.0,0.00025399,2]
[358589042,1745292639339,-500.0,0.00025399,2]
[358589043,1745292639349,-151.0,0.00025399,2]
[358589044,1745292639358,-151.0,0.00025399,2]
[358589045,1745292639368,-200.0,0.000254,2]
[358589046,1745292639377,-708.0,0.00025563,2]
[358589047,1745292639386,-545.181,0.00025563,2]
[358589048,1745292639395,-2279.465,0.00025563,2]
[358589049,1745292639405,-178.488427,0.00025734,7]
[358589050,1745292639414,-178.488427,0.00025734,7]
[358589051,1745292639424,-151.0,0.00025734,7]
[358589052,1745292639433,-151.0,0.00025734,7]
[358589053,1745292639442,-151.0,0.00025734,7]
[358589054,1745292639452,-151.0,0.00025734,7]
[358589055,1745292639461,-526.470825,0.00025734,7]
[358589056,1745292639471,-526.470825,0.00025734,7]
[358589057,1745292639480,-151.0,0.00025734,7]
[358589058,1745292639490,-151.0,0.00025734,7]
[358589059,1745292639573,-159.881835,0.00025734,7]
[358589060,1745292639583,-159.881835,0.00025734,7]